bitfinex-derivatives/quotes_BNBF0:USTF0_20250617
["timestamp","ask_amount","ask_price","bid_price","bid_amount"]
[1750176032897,1.52992434,647.03,646.43,1.255]
[1750176033195,1.52992434,647.01,646.43,1.255]
[1750176033795,1.52992434,647.04,646.43,1.255]
[1750176033998,1.52992434,647.03,646.43,1.255]
[1750176034297,1.52992434,647.01,646.43,1.255]
[1750176034498,1.52992434,646.99,646.43,1.255]
[1750176034802,1.52992434,647.12,646.43,1.255]
[1750176035100,1.52992434,647.09,646.43,1.255]
[1750176035400,1.83900035,647.09,646.43,1.255]
[1750176035803,1.52992434,647.08,646.06,1.414]
[1750176036501,0.30908557,647.07,646.06,1.414]
[1750176038806,0.30908557,647.07,646.07,1.18]
[1750176042906,0.30908557,647.07,646.08,1.227]
[1750176047609,1.52992434,647.0,646.11,1.15678164]
[1750176047807,0.30912378,646.99,646.12,1.15678164]
[1750176048007,0.30912378,646.99,646.11,1.15678164]
[1750176048706,0.30912378,646.99,646.08,1.227]
[1750176048707,0.30912378,646.99,646.12,1.15678164]
[1750176049108,0.30912378,646.99,646.11,1.15678164]
[1750176051410,0.30912378,646.99,646.1,1.15678164]
[1750176051611,0.30912378,646.99,646.09,1.15678164]
[1750176051909,0.30912378,646.99,646.08,1.227]
[1750176052710,1.52992434,646.98,646.08,1.227]
[1750176052912,1.52992434,646.95,646.08,1.227]
[1750176053115,1.83907201,646.94,646.08,1.227]
[1750176053311,0.30915245,646.93,646.08,1.227]
[1750176056412,1.52992434,646.92,646.08,1.227]
[1750176056617,0.30916201,646.91,646.08,1.227]
[1750176056818,0.30916201,646.91,646.09,0.864]
[1750176057114,1.52992434,646.9,646.09,1.99]
[1750176057416,0.30917157,646.89,646.09,1.99]
[1750176057617,1.83909591,646.89,646.09,1.99]
[1750176058114,1.52992434,646.87,646.09,1.99]
[1750176058414,0.30918591,646.86,646.09,1.99]
[1750176060918,1.83911025,646.86,646.09,1.99]
[1750176061114,0.30918591,646.86,646.09,1.99]
[1750176062513,1.83911025,646.86,646.09,1.99]
[1750176063214,0.30918591,646.86,646.09,1.99]
[1750176065723,1.83911025,646.86,646.09,1.99]
[1750176065921,0.26919046,646.67,646.09,1.99]
[1750176079934,0.26919046,646.67,646.09,1.126]
[1750176080335,0.26919046,646.67,646.1,1.381]
[1750176083838,0.26919046,646.67,646.11,0.863]
[1750176084540,0.26919046,646.67,646.12,1.404]
[1750176093149,0.26919046,646.67,646.13,1.34]
[1750176094048,0.30918591,646.86,646.13,1.34]
[1750176094247,0.26913737,646.75,646.13,1.34]
[1750176094447,0.26913737,646.75,646.14,1.15678164]
[1750176095150,0.26913737,646.75,646.13,2.49678164]
[1750176095848,0.26913737,646.75,646.13,1.34]
[1750176099354,1.52992434,646.71,646.13,1.34]
[1750176099555,1.52992434,646.7,646.13,1.34]
[1750176100255,1.52992434,646.69,646.13,1.34]
[1750176100751,1.52992434,646.7,646.13,1.34]
[1750176100952,0.26913737,646.75,646.13,1.34]
[1750176106161,0.26913737,646.75,646.12,1.404]
[1750176109166,0.26913737,646.75,646.13,0.974]
[1750176109769,0.26913737,646.75,646.14,0.862]
[1750176110869,1.52992434,646.73,646.14,0.862]
[1750176111164,1.52992434,646.72,646.14,0.862]
[1750176111369,1.52992434,646.69,646.14,0.862]
[1750176111669,1.52992434,646.68,646.15,1.136]
[1750176112169,1.52992434,646.67,646.15,1.136]
[1750176112970,1.52992434,646.66,646.15,1.136]
[1750176113170,1.52992434,646.65,646.15,1.136]
[1750176113368,0.26913737,646.75,646.15,1.136]
[1750176113369,1.52992434,646.66,646.15,1.136]
[1750176113866,1.52992434,646.69,646.15,1.136]
[1750176114474,1.52992434,646.72,646.15,1.136]
[1750176114973,0.26913737,646.75,646.15,1.136]
[1750176115173,0.30924328,646.74,646.15,1.136]
[1750176116269,0.30924328,646.74,646.16,0.893]
[1750176120372,1.83916762,646.74,646.16,0.893]
[1750176120976,0.30924328,646.74,646.16,0.893]
[1750176123675,0.26913737,646.75,646.16,0.893]
[1750176123975,1.79906171,646.75,646.16,0.893]
[1750176124371,0.26913737,646.75,646.16,0.893]
[1750176124674,1.52992434,646.74,646.16,0.893]
[1750176125173,0.26913737,646.75,646.16,0.893]
[1750176125472,1.52992434,646.74,646.16,0.893]
[1750176126571,0.26913737,646.75,646.16,0.893]
[1750176130478,0.26913737,646.75,646.17,1.08]
[1750176132578,0.26913737,646.75,646.18,0.862]
[1750176136383,1.52992434,646.7,646.18,0.862]
[1750176137184,1.52992434,646.69,646.18,0.862]
[1750176138184,1.79906171,646.75,646.18,0.862]
[1750176138884,0.26913737,646.75,646.18,0.862]
[1750176142791,0.26913737,646.75,646.19,1.074]
[1750176142989,0.26913737,646.75,646.19,2.23078164]
[1750176143187,0.26913737,646.75,646.2,1.15678164]
[1750176143389,0.26913737,646.75,646.19,2.23078164]
[1750176144087,0.26913737,646.75,646.19,1.074]
[1750176147893,0.26913737,646.75,646.2,1.15678164]
[1750176148090,0.26913737,646.75,646.21,1.15678164]
[1750176148390,0.26913737,646.75,646.23,1.15678164]
[1750176148590,0.26913737,646.75,646.22,1.15678164]
[1750176148793,1.52992434,647.01,646.22,1.15678164]
[1750176148997,0.26909783,646.82,646.22,1.15678164]
[1750176150899,0.26909783,646.82,646.21,1.15678164]
[1750176151497,0.26909783,646.82,646.22,0.866]
[1750176160502,0.26909783,646.82,646.23,0.862]
[1750176165503,1.52992434,646.69,646.23,0.862]
[1750176165905,1.52992434,646.66,646.23,0.862]
[1750176166201,1.52992434,646.65,646.23,0.862]
[1750176166401,1.52992434,646.6,646.23,0.862]
[1750176166607,1.52992434,646.59,646.23,0.862]
[1750176167203,1.52992434,646.58,646.23,0.862]
[1750176167506,1.52992434,646.59,646.23,0.862]
[1750176168508,1.52992434,646.61,646.23,0.862]
[1750176168708,1.52992434,646.62,646.23,0.862]
[1750176169006,0.26909783,646.82,646.23,0.862]
[1750176169007,1.52992434,646.6,646.23,0.862]
[1750176169207,1.52992434,646.61,646.23,0.862]
[1750176169602,1.52992434,646.63,646.23,0.862]
[1750176169907,1.52992434,646.63,646.24,1.074]
[1750176170606,1.52992434,646.64,646.24,1.074]
[1750176171606,1.52992434,646.66,646.24,1.074]
[1750176172507,1.52992434,646.67,646.24,1.074]
[1750176172806,1.52992434,646.67,646.25,1.434]
[1750176173503,1.52992434,646.68,646.25,1.434]
[1750176174202,1.52992434,646.67,646.25,1.434]
[1750176174406,1.52992434,646.59,646.25,1.434]
[1750176174707,1.52992434,646.6,646.25,1.434]
[1750176175208,1.52992434,646.58,646.25,1.434]
[1750176175406,1.52992434,646.59,646.26,0.981]
[1750176175803,1.52992434,646.59,646.27,0.862]
[1750176176006,1.52992434,646.58,646.27,0.862]
[1750176176503,1.52992434,646.59,646.27,0.862]
[1750176176705,1.52992434,646.6,646.27,0.862]
[1750176176903,1.52992434,646.59,646.27,0.862]
[1750176177506,1.52992434,646.61,646.27,0.862]
[1750176178102,1.52992434,646.62,646.27,0.862]
[1750176179202,1.52992434,646.64,646.27,0.862]
[1750176179406,1.52992434,646.65,646.27,0.862]
[1750176179703,1.52992434,646.66,646.27,0.862]
[1750176180207,1.52992434,646.65,646.27,0.862]
[1750176181002,1.52992434,646.66,646.27,0.862]
[1750176181712,1.52992434,646.69,646.27,0.862]
[1750176181903,0.30927197,646.68,646.27,0.862]
[1750176187512,1.52992434,646.67,646.27,0.862]
[1750176187808,1.83919631,646.68,646.27,0.862]
[1750176188509,1.52992434,646.66,646.27,0.862]
[1750176188710,1.83919631,646.68,646.27,0.862]
[1750176189011,0.30927197,646.68,646.27,0.862]
[1750176195920,0.30927197,646.68,646.26,0.981]
[1750176197421,1.52992434,646.65,646.26,0.981]
[1750176197618,1.52992434,646.63,646.26,0.981]
[1750176197917,0.30930067,646.62,646.26,0.981]
[1750176198318,1.83922501,646.62,646.25,1.434]
[1750176198718,0.30930067,646.62,646.25,1.434]
[1750176198917,1.83922501,646.62,646.25,1.434]
[1750176199121,1.52992434,646.59,646.25,1.434]
[1750176199922,1.52992434,646.6,646.25,1.434]
[1750176200222,0.30931502,646.59,646.25,1.434]
[1750176200921,0.30931502,646.59,646.26,1.098]
[1750176205726,0.30931502,646.59,646.27,0.945]
[1750176210727,1.83923936,646.59,646.27,0.945]
[1750176211026,0.30931502,646.59,646.27,0.945]
[1750176211627,1.83923936,646.59,646.27,0.945]
[1750176212530,0.30931502,646.59,646.27,0.945]
[1750176212728,1.52992434,646.58,646.27,0.945]
[1750176212929,0.30932458,646.57,646.27,0.945]
[1750176213829,1.83924892,646.57,646.27,0.945]
[1750176214537,1.52992434,646.55,646.27,0.945]
[1750176214832,1.52992434,646.49,646.27,0.945]
[1750176215435,1.52992434,646.46,646.27,0.945]
[1750176215733,0.30933894,646.54,646.27,0.945]
[1750176215734,1.52992434,646.44,646.27,0.945]
[1750176215933,1.52992434,646.42,646.27,0.945]
[1750176216236,1.52992434,646.41,646.27,0.945]
[1750176216433,1.52992434,646.39,646.27,0.945]
[1750176216936,1.52992434,646.36,646.27,0.945]
[1750176217133,1.52992434,646.33,646.27,0.945]
[1750176217332,1.52992434,646.29,646.27,0.945]
[1750176217537,2.29488652,646.41,646.27,0.945]
[1750176217838,1.52712639,646.28,646.27,0.945]
[1750176218137,2.29488652,646.39,646.27,0.945]
[1750176218533,0.30941551,646.38,646.27,0.945]
[1750176219136,1.52725149,646.28,646.27,0.945]
[1750176219435,1.52725149,646.3,646.27,0.945]
[1750176219940,1.8367053,646.3,646.27,0.945]
[1750176220239,0.30945381,646.3,646.27,0.945]
[1750176228949,0.30945381,646.3,646.21,1.314]
[1750176235852,0.30945381,646.3,646.11,1.435]
[1750176237955,0.30945381,646.3,646.12,1.139]
[1750176241962,1.52725149,646.29,646.12,1.139]
[1750176242263,1.8367053,646.3,646.12,1.139]
[1750176243463,0.30945381,646.3,646.12,1.139]
[1750176247474,0.30945381,646.3,646.13,1.013]
[1750176255776,1.8367053,646.3,646.13,1.013]
[1750176255977,1.52725149,646.28,646.13,1.013]
[1750176256378,1.52725149,646.26,646.13,1.013]
[1750176257177,1.52725149,646.25,646.13,1.013]
[1750176257473,1.52725149,646.22,646.13,1.013]
[1750176257677,1.52725149,646.21,646.13,1.013]
[1750176257875,1.52725149,646.19,646.13,1.013]
[1750176258173,1.52725149,646.2,646.13,1.013]
[1750176261074,0.30945381,646.3,646.13,1.013]
[1750176261075,1.52725149,646.21,646.13,1.013]
[1750176261573,1.52725149,646.2,646.13,1.013]
[1750176261774,1.52725149,646.21,646.13,1.013]
[1750176263179,1.52725149,646.22,646.13,1.013]
[1750176263380,1.52725149,646.24,646.13,1.013]
[1750176263679,1.52725149,646.25,646.13,1.013]
[1750176264275,0.30945381,646.3,646.13,1.013]
[1750176264276,1.52725149,646.26,646.13,1.013]
[1750176265981,1.52725149,646.24,646.13,1.013]
[1750176266778,1.52725149,646.23,646.13,1.013]
[1750176267082,1.52725149,646.24,646.13,1.013]
[1750176270479,1.52725149,646.26,646.13,1.013]
[1750176270679,1.52725149,646.27,646.13,1.013]
[1750176271685,1.52725149,646.26,646.13,1.013]
[1750176271981,1.52725149,646.25,646.13,1.013]
[1750176272888,1.52725149,646.23,646.13,1.013]
[1750176273389,1.52725149,646.21,646.13,1.013]
[1750176274086,1.52725149,646.2,646.13,1.013]
[1750176275490,1.52725149,646.19,646.13,1.013]
[1750176275785,1.52725149,646.2,646.13,1.013]
[1750176276189,1.52725149,646.19,646.13,1.013]
[1750176276385,1.52725149,646.2,646.13,1.013]
[1750176277092,1.52725149,646.19,646.13,1.013]
[1750176277492,1.52725149,646.18,646.13,1.013]
[1750176277993,2.29488652,646.23,646.13,1.013]
[1750176278187,2.29488652,646.21,646.13,1.013]
[1750176278893,2.29488652,646.2,646.13,1.013]
[1750176279492,2.29488652,646.21,646.13,1.013]
[1750176279688,2.29488652,646.23,646.13,1.013]
[1750176279994,2.29488652,646.24,646.13,1.013]
[1750176280589,2.29488652,646.25,646.13,1.013]
[1750176280891,0.30947775,646.25,646.13,1.013]
[1750176281091,2.60436427,646.25,646.13,1.013]
[1750176281393,2.29488652,646.23,646.13,1.013]
[1750176281593,2.29488652,646.24,646.13,1.013]
[1750176282692,1.53273807,646.16,646.13,1.013]
[1750176283392,1.53273807,646.18,646.13,1.013]
[1750176283691,0.30947775,646.25,646.13,1.013]
[1750176283692,1.53273807,646.19,646.13,1.013]
[1750176284195,0.30947775,646.25,646.13,1.013]
[1750176284196,1.53273807,646.18,646.13,1.013]
[1750176284397,1.53273807,646.2,646.13,1.013]
[1750176285296,1.53273807,646.21,646.13,1.013]
[1750176285997,1.53273807,646.22,646.13,1.013]
[1750176286594,1.53273807,646.22,646.09,1.184]
[1750176289895,1.53273807,646.21,646.09,1.184]
[1750176290093,1.53273807,646.2,646.1,1.291]
[1750176290398,1.53273807,646.16,646.1,1.291]
[1750176290997,1.53273807,646.15,646.1,1.291]
[1750176291195,1.53273807,646.13,646.1,1.291]
[1750176291399,1.53273807,646.12,646.1,1.291]
[1750176291795,1.53273807,646.13,646.1,1.291]
[1750176292700,1.53273807,646.14,646.1,1.291]
[1750176292901,1.53273807,646.15,646.1,1.291]
[1750176293102,1.53273807,646.19,646.1,1.291]
[1750176293402,1.53273807,646.22,646.1,1.291]
[1750176293801,1.53273807,646.21,646.1,1.291]
[1750176294097,1.53273807,646.22,646.1,1.291]
[1750176295498,0.30947775,646.25,646.1,1.291]
[1750176295799,1.84221582,646.25,646.1,1.291]
[1750176295999,1.53273807,646.22,646.1,1.291]
[1750176296405,1.53273807,646.21,646.1,1.291]
[1750176296606,0.30947775,646.25,646.1,1.291]
[1750176297906,1.84221582,646.25,646.1,1.291]
[1750176298204,0.30947775,646.25,646.1,1.291]
[1750176298402,1.84221582,646.25,646.1,1.291]
[1750176298606,1.53273807,646.24,646.1,1.291]
[1750176299808,1.53273807,646.25,646.1,1.291]
[1750176300708,1.53273807,646.23,646.1,1.291]
[1750176300904,1.53273807,646.22,646.1,1.291]
[1750176301811,1.53273807,646.3,646.1,1.291]
[1750176302011,1.53273807,646.33,646.1,1.291]
[1750176302407,1.53273807,646.35,646.1,1.291]
[1750176303011,1.53273807,646.36,646.1,1.291]
[1750176303312,1.53273807,646.35,646.1,1.291]
[1750176303709,1.53273807,646.36,646.1,1.291]
[1750176303909,1.53273807,646.35,646.1,1.291]
[1750176304209,1.53273807,646.36,646.1,1.291]
[1750176305213,1.53273807,646.36,645.71,1.881]
[1750176307512,1.53273807,646.36,645.72,1.416]
[1750176308615,1.53273807,646.35,645.72,1.416]
[1750176309019,1.53273807,646.36,645.72,1.416]
[1750176309317,1.53273807,646.37,645.72,1.416]
[1750176310122,1.53273807,646.39,645.72,1.416]
[1750176310326,1.53273807,646.43,645.72,1.416]
[1750176310626,0.26909783,646.82,645.72,1.416]
[1750176310627,1.53273807,646.45,645.72,1.416]
[1750176311023,1.53273807,646.47,645.72,1.416]
[1750176311428,1.53273807,646.4,645.72,1.416]
[1750176311625,1.53273807,646.35,645.72,1.416]
[1750176312325,1.53273807,646.34,645.72,1.416]
[1750176312527,1.53273807,646.35,645.72,1.416]
[1750176312729,1.53273807,646.34,645.72,1.416]
[1750176314030,1.53273807,646.33,645.72,1.416]
[1750176314230,1.53273807,646.33,645.73,2.26]
[1750176314431,1.53273807,646.34,645.73,2.26]
[1750176314730,1.53273807,646.32,645.73,2.26]
[1750176316733,0.26909783,646.82,645.73,2.26]
[1750176316734,1.53273807,646.43,645.73,2.26]
[1750176316934,1.53273807,646.41,645.73,2.26]
[1750176317434,1.53273807,646.42,645.73,2.26]
[1750176318136,1.53273807,646.41,645.73,2.26]
[1750176318432,1.53273807,646.42,645.73,2.26]
[1750176318635,1.53273807,646.41,645.73,2.26]
[1750176319333,1.53273807,646.43,645.73,2.26]
[1750176319530,1.53273807,646.38,645.73,2.26]
[1750176319730,1.53273807,646.39,645.73,2.26]
[1750176320234,1.53273807,646.41,645.73,2.26]
[1750176320436,1.53273807,646.4,645.73,2.26]
[1750176320633,1.53273807,646.41,645.73,2.26]
[1750176321337,1.53273807,646.46,645.73,2.26]
[1750176321538,1.53273807,646.48,645.73,2.26]
[1750176321937,1.53273807,646.46,645.73,2.26]
[1750176322135,1.53273807,646.48,645.73,2.26]
[1750176322940,1.53273807,646.47,645.73,2.26]
[1750176323138,1.53273807,646.53,645.73,2.26]
[1750176323536,1.53273807,646.54,645.73,2.26]
[1750176324135,1.53273807,646.54,645.74,0.86]
[1750176326340,1.53273807,646.57,645.74,0.86]
[1750176327039,1.53273807,646.54,645.74,0.86]
[1750176327241,1.53273807,646.53,645.74,0.86]
[1750176328141,1.53273807,646.52,645.74,0.86]
[1750176328442,1.53273807,646.48,645.74,0.86]
[1750176328641,1.53273807,646.45,645.74,0.86]
[1750176328937,1.53273807,646.43,645.74,0.86]
[1750176329339,1.53273807,646.33,645.74,0.86]
[1750176329543,1.53273807,646.32,645.74,0.86]
[1750176332045,0.26909783,646.82,645.74,0.86]
[1750176332046,1.53273807,646.21,645.74,0.86]
[1750176332640,1.53273807,646.22,645.74,0.86]
[1750176332840,1.53273807,646.21,645.74,0.86]
[1750176333044,1.53273807,646.25,645.74,0.86]
[1750176333239,1.53273807,646.27,645.74,0.86]
[1750176333544,1.53273807,646.3,645.74,0.86]
[1750176333744,1.53273807,646.29,645.74,0.86]
[1750176333944,1.84219188,646.3,645.74,0.86]
[1750176334541,1.53273807,646.29,645.74,0.86]
[1750176334944,0.30945381,646.3,645.74,0.86]
[1750176336646,1.53273807,646.29,645.74,0.86]
[1750176337047,0.30945381,646.3,645.74,0.86]
[1750176337748,1.53273807,646.27,645.74,0.86]
[1750176337944,1.53273807,646.26,645.74,0.86]
[1750176338545,1.53273807,646.25,645.74,0.86]
[1750176339149,1.53273807,646.22,645.74,0.86]
[1750176339346,1.53273807,646.21,645.74,0.86]
[1750176339550,1.53273807,646.2,645.75,0.973]
[1750176339745,1.53273807,646.21,645.75,0.973]
[1750176340050,1.53273807,645.96,645.75,0.973]
[1750176340549,1.53273807,645.97,645.75,0.973]
[1750176340746,1.53273807,645.96,645.75,0.973]
[1750176341745,1.53273807,645.97,645.75,0.973]
[1750176342247,1.53273807,645.96,645.75,0.973]
[1750176342644,1.53273807,645.98,645.75,0.973]
[1750176343546,1.53273807,645.99,645.75,0.973]
[1750176344250,1.53273807,645.98,645.75,0.973]
[1750176344448,1.53273807,646.0,645.75,0.973]
[1750176344645,1.53273807,646.01,645.75,0.973]
[1750176345349,1.53273807,646.04,645.75,0.973]
[1750176346050,1.53273807,646.08,645.75,0.973]
[1750176346549,1.53273807,646.09,645.75,0.973]
[1750176346749,1.53273807,646.1,645.75,0.973]
[1750176346948,1.53273807,646.11,645.75,0.973]
[1750176347150,1.84228288,646.11,645.75,0.973]
[1750176347347,0.3095496,646.1,645.75,0.973]
[1750176349350,0.26947082,646.02,645.75,0.973]
[1750176349748,0.57905875,646.02,645.75,0.973]
[1750176355349,0.57905875,646.02,645.76,0.975]
[1750176357754,0.26947082,646.02,645.76,0.975]
[1750176369159,0.26947082,646.02,645.77,1.155]
[1750176370362,1.53273807,646.44,645.77,1.155]
[1750176370560,0.30939158,646.43,645.77,1.155]
[1750176370759,0.26936965,646.04,645.77,1.155]
[1750176370961,0.30939158,646.43,645.77,1.155]
[1750176371362,0.26936757,646.04,645.77,1.155]
[1750176371562,0.30939158,646.43,645.77,1.155]
[1750176371762,0.26934463,646.27,645.77,1.155]
[1750176371960,0.30947296,646.26,645.77,1.155]
[1750176380169,0.30947296,646.26,645.78,0.929]
[1750176383366,0.30947296,646.26,645.79,0.86]
[1750176388574,0.26929461,646.42,645.79,0.86]
[1750176389476,0.26929461,646.42,645.8,1.44]
[1750176393974,0.26929461,646.42,645.81,1.293]
[1750176405182,0.26929461,646.42,645.8,1.44]
[1750176407589,0.57869097,646.42,645.81,0.859]
[1750176407788,0.30940115,646.41,645.81,0.859]
[1750176408084,0.30940115,646.41,645.82,1.442]
[1750176418393,1.53273807,646.37,645.82,1.442]
[1750176418690,0.30942508,646.36,645.82,1.442]
[1750176419091,1.53273807,646.35,645.82,1.442]
[1750176419397,0.30943466,646.34,645.82,1.442]
[1750176419900,1.84217273,646.34,645.82,1.442]
[1750176420096,1.53273807,646.3,645.82,1.442]
[1750176420296,0.3094586,646.29,645.82,1.442]
[1750176420700,1.53273807,646.27,645.82,1.442]
[1750176420897,1.53273807,646.26,645.82,1.442]
[1750176421097,0.30947775,646.25,645.82,1.442]
[1750176428003,0.30947775,646.25,645.83,0.902]
[1750176431404,0.30947775,646.25,645.84,1.371]
[1750176433105,0.26929461,646.42,645.84,1.371]
[1750176439113,0.26929461,646.42,645.85,1.442]
[1750176447828,0.26929461,646.42,645.86,0.859]
[1750176456841,1.52749315,646.18,645.86,0.859]
[1750176457040,1.52749315,646.18,645.87,1.197]
[1750176457743,1.52749315,646.23,645.87,1.197]
[1750176457944,1.52749315,646.3,645.87,1.197]
[1750176458644,1.52749315,646.31,645.87,1.197]
[1750176459043,0.30944902,646.31,645.87,1.197]
[1750176459242,0.30944902,646.31,645.88,1.226]
[1750176460749,1.52749315,646.29,645.88,1.226]
[1750176461046,1.83695175,646.29,645.88,1.226]
[1750176461343,0.3094586,646.29,645.88,1.226]
[1750176474251,0.3094586,646.29,645.89,1.277]
[1750176477655,1.52749315,646.28,645.89,1.277]
[1750176477856,1.52749315,646.28,645.9,0.859]
[1750176478057,1.52749315,646.24,645.9,0.859]
[1750176479251,1.52749315,646.23,645.9,0.859]
[1750176479551,1.52749315,646.24,645.9,0.859]
[1750176480454,1.52749315,646.16,645.9,0.859]
[1750176480654,1.52749315,646.1,645.9,0.859]
[1750176480956,1.52749315,646.08,645.9,0.859]
[1750176481458,1.52749315,646.11,645.9,0.859]
[1750176481852,1.52749315,646.1,645.9,0.859]
[1750176483258,1.52749315,646.09,645.9,0.859]
[1750176484458,1.52749315,646.08,645.9,0.859]
[1750176484859,1.52749315,646.1,645.9,0.859]
[1750176485060,1.52749315,646.11,645.9,0.859]
[1750176485359,1.52749315,646.1,645.9,0.859]
[1750176485660,1.52749315,646.11,645.9,0.859]
[1750176485854,1.52749315,646.13,645.9,0.859]
[1750176486260,1.52749315,646.15,645.9,0.859]
[1750176486856,1.52749315,646.16,645.91,0.946]
[1750176487358,1.52749315,646.17,645.91,0.946]
[1750176487860,1.52749315,646.18,645.91,0.946]
[1750176488059,1.52749315,646.17,645.91,0.946]
[1750176488355,1.52749315,646.18,645.91,0.946]
[1750176488557,1.52749315,646.17,645.91,0.946]
[1750176489059,1.52749315,646.18,645.91,0.946]
[1750176489457,0.3094586,646.29,645.91,0.946]
[1750176489458,1.52749315,646.17,645.91,0.946]
[1750176489656,1.52749315,646.18,645.91,0.946]
[1750176490260,1.52749315,646.17,645.91,0.946]
[1750176490661,1.52749315,646.17,645.92,1.274]
[1750176490958,1.52749315,646.18,645.92,1.274]
[1750176491363,1.52749315,646.16,645.92,1.274]
[1750176491557,1.52749315,646.18,645.92,1.274]
[1750176492364,1.52749315,646.19,645.92,1.274]
[1750176493061,1.52749315,646.21,645.92,1.274]
[1750176493265,1.52749315,646.23,645.92,1.274]
[1750176493563,1.52749315,646.22,645.92,1.274]
[1750176494260,1.52749315,646.23,645.92,1.274]
[1750176494963,1.52749315,646.24,645.92,1.274]
[1750176495466,1.52749315,646.37,645.92,1.274]
[1750176495665,1.52749315,646.36,645.92,1.274]
[1750176496469,1.52749315,646.35,645.92,1.274]
[1750176496764,0.26929461,646.42,645.92,1.274]
[1750176496765,1.52749315,646.31,645.92,1.274]
[1750176497269,1.52749315,646.3,645.92,1.274]
[1750176498066,1.52749315,646.34,645.92,1.274]
[1750176498368,1.52749315,646.32,645.92,1.274]
[1750176498566,1.52749315,646.33,645.92,1.274]
[1750176498770,0.26929461,646.42,645.92,1.274]
[1750176498771,1.52749315,646.32,645.92,1.274]
[1750176499773,1.52749315,646.31,645.92,1.274]
[1750176500370,1.52749315,646.3,645.92,1.274]
[1750176501168,0.26929461,646.42,645.92,1.274]
[1750176501169,1.52749315,646.14,645.92,1.274]
[1750176501373,1.52749315,646.13,645.92,1.274]
[1750176501875,1.52749315,646.12,645.92,1.274]
[1750176503974,1.52749315,646.1,645.92,1.274]
[1750176504274,1.52749315,646.08,645.92,1.274]
[1750176504672,1.52749315,646.07,645.92,1.274]
[1750176504871,1.52749315,646.06,645.92,1.274]
[1750176505278,1.52749315,645.99,645.92,1.274]
[1750176505673,1.52749315,645.98,645.92,1.274]
[1750176506173,1.52749315,645.97,645.92,1.274]
[1750176506378,1.52749315,645.98,645.92,1.274]
[1750176506877,1.52749315,645.96,645.92,1.274]
[1750176507373,1.52749315,645.98,645.92,1.274]
[1750176507675,1.52749315,645.97,645.92,1.274]
[1750176507873,1.52749315,645.95,645.92,1.274]
[1750176508474,0.26929461,646.42,645.92,1.274]
[1750176508475,1.52749315,646.01,645.92,1.274]
[1750176508876,1.52749315,645.99,645.92,1.274]
[1750176509081,1.52749315,645.98,645.92,1.274]
[1750176509481,1.52749315,646.0,645.92,1.274]
[1750176510382,2.29488652,646.18,645.92,1.274]
[1750176511082,0.26929461,646.42,645.92,1.274]
[1750176512681,0.30940115,646.41,645.92,1.274]
[1750176517586,1.52664989,646.1,645.92,1.274]
[1750176517790,0.30955439,646.09,645.92,1.274]
[1750176518885,1.83620428,646.09,645.92,1.274]
[1750176519486,0.30955439,646.09,645.92,1.274]
[1750176520792,1.83620428,646.09,645.92,1.274]
[1750176520988,1.52664989,646.08,645.92,1.274]
[1750176521187,1.52664989,646.07,645.92,1.274]
[1750176521791,0.30955439,646.09,645.92,1.274]
[1750176521792,1.52664989,646.04,645.92,1.274]
[1750176521989,1.52664989,646.05,645.92,1.274]
[1750176522191,0.30957835,646.04,645.77,1.228]
[1750176522387,1.83622824,646.04,645.77,1.228]
[1750176522592,0.30957835,646.04,645.77,1.228]
[1750176522792,1.52664989,646.03,645.77,1.228]